fUSD/lending_fUSD_20251225
["ID","MTS","AMOUNT","RATE_DAILY","PERIOD"]
[399746344,1766653365981,500.0,0.00032876,120]
[399746345,1766653366074,500.0,0.00032876,120]
[399746346,1766653366272,500.0,0.00032876,120]
[399746347,1766653366376,282.87723885,0.00032876,120]
[399746348,1766653366505,500.0,0.00032876,120]
[399746349,1766653366733,543.65709727,0.00032876,120]
[399746350,1766653367958,409.69806014,0.00032876,120]
[399746351,1766653369723,391.726667,0.00032876,120]
[399746352,1766653369922,215.36594202,0.00032876,120]
[399746353,1766653374496,226.39453881,0.00032876,120]
[399746354,1766653375117,454.23284801,0.00032876,120]
[399746355,1766653376276,445.14307985,0.00032876,120]
[399746356,1766653376364,231.20780165,0.00032876,120]
[399746357,1766653376888,505.38029728,0.00032876,120]
[399746358,1766653381940,597.86403657,0.00032876,120]
[399746359,1766653382629,500.0,0.00032876,120]
[399746360,1766653382862,550.0086849,0.00032876,120]
[399746361,1766653383775,340.02623899,0.00032876,120]
[399746362,1766653384976,503.02,0.00032876,120]
[399746363,1766653385077,503.02,0.00032876,120]
[399746364,1766653385305,503.02,0.00032876,120]
[399746365,1766653385541,503.02,0.00032876,120]
[399746366,1766653385770,503.02,0.00032876,120]
[399746367,1766653385849,285.80094728,0.00032876,120]
[399746368,1766653385993,503.02,0.00032876,120]
[399746369,1766653386263,503.02,0.00032876,120]
[399746370,1766653386582,503.02,0.00032876,120]
[399746371,1766653386725,503.02,0.00032876,120]
[399746372,1766653386994,503.02,0.00032876,120]
[399746373,1766653387224,503.02,0.00032876,120]
[399746374,1766653387449,503.02,0.00032876,120]
[399746375,1766653387679,503.02,0.00032876,120]
[399746376,1766653387909,503.02,0.00032876,120]
[399746377,1766653388193,503.02,0.00032876,120]
[399746378,1766653388442,503.02,0.00032876,120]
[399746379,1766653388666,385.23327794,0.00032876,120]
[399746380,1766653388749,503.02,0.00032876,120]
[399746381,1766653388958,503.02,0.00032876,120]
[399746382,1766653389198,503.02,0.00032876,120]
[399746383,1766653389425,503.02,0.00032876,120]
[399746384,1766653389669,503.02,0.00032876,120]
[399746385,1766653389906,503.02,0.00032876,120]
[399746386,1766653390133,503.02,0.00032876,120]
[399746387,1766653390364,503.21068384,0.00032876,120]
[399746388,1766653392100,532.72454796,0.00032876,120]
[399746389,1766653392211,458.55216053,0.00032876,120]
[399746390,1766653392872,303.38663939,0.00032876,120]
[399746391,1766653393079,500.0,0.00032876,120]
[399746392,1766653393364,260.86319796,0.00032876,120]
[399746393,1766653397936,389.98178687,0.00032876,120]
[399746394,1766653398364,500.0,0.00032876,120]
[399746395,1766653398608,542.39162861,0.00032876,120]
[399746396,1766653401239,358.26777637,0.00032876,120]
[399746403,1766653404058,183.9599261,0.00032876,120]
[399746404,1766653409264,198.74539085,0.00032876,120]
[399746405,1766653410336,233.60162538,0.00032876,120]
[399746406,1766653415014,217.27195965,0.00032876,120]
[399746407,1766653420658,200.69496507,0.00032876,120]
[399746408,1766653423048,276.70464996,0.00032876,120]
[399746409,1766653426978,224.6432647,0.00032876,120]
[399746410,1766653428768,210.65069055,0.00032876,120]
[399746411,1766653430926,205.98772194,0.00011042,2]
[399746412,1766653432882,500.0,0.00032876,120]
[399746413,1766653433108,500.0,0.00032876,120]
[399746414,1766653433332,500.0,0.00032876,120]
[399746415,1766653433565,500.0,0.00032876,120]
[399746416,1766653433791,500.0,0.00032876,120]
[399746417,1766653434013,500.0,0.00032876,120]
[399746418,1766653434867,500.0,0.00032876,120]
[399746419,1766653435093,500.0,0.00032876,120]
[399746420,1766653435177,642.60206285,0.00032876,120]
[399746421,1766653435322,500.0,0.00032876,120]
[399746422,1766653435542,500.0,0.00032876,120]
[399746423,1766653435774,383.56547848,0.00032876,120]
[399746424,1766653437237,450.81552271,0.00032876,120]
[399746425,1766653437631,500.0,0.00032876,120]
[399746426,1766653437861,500.0,0.00032876,120]
[399746427,1766653438161,500.0,0.00032876,120]
[399746428,1766653438353,500.0,0.00032876,120]
[399746429,1766653438611,323.84270726,0.00032876,120]
[399746430,1766653439136,335.41576982,0.00032876,120]
[399746431,1766653440987,421.96970763,0.00032876,120]
[399746432,1766653442957,269.40014272,0.00032876,120]
[399746433,1766653444900,500.0,0.00032876,120]
[399746434,1766653445268,500.0,0.00032876,120]
[399746435,1766653445523,500.0,0.00032876,120]
[399746436,1766653445772,314.21506345,0.00032876,120]
[399746437,1766653455168,207.08066416,0.00032876,120]
[399746438,1766653457253,234.93557884,0.00032876,120]
[399746443,1766653460567,166.40831441,0.00032876,120]
[399746446,1766653464001,500.0,0.00032876,120]
[399746447,1766653464272,500.0,0.00032876,120]
[399746448,1766653464855,500.0,0.00032876,120]
[399746449,1766653465106,500.0,0.00032876,120]
[399746450,1766653465208,280.55922153,0.00032876,120]
[399746451,1766653465340,500.0,0.00032876,120]
[399746452,1766653465573,500.0,0.00032876,120]
[399746453,1766653465795,500.0,0.00032876,120]
[399746454,1766653466037,500.0,0.00032876,120]
[399746455,1766653466311,524.27628181,0.00032876,120]
[399746456,1766653476179,362.35684247,0.00032876,120]
[399746457,1766653476775,500.0,0.00032876,120]
[399746458,1766653477109,500.0,0.00032876,120]
[399746459,1766653477345,500.0,0.00032876,120]
[399746461,1766653480107,391.36807944,0.00032876,120]
[399746462,1766653480189,435.58547875,0.00032876,120]
[399746463,1766653480842,478.28076742,0.00032876,120]
[399746464,1766653484456,-833.5937,0.00011142,2]
[399746465,1766653484487,-1606.0694,0.00011142,2]
[399746466,1766653488181,233.3415576,0.00032876,120]
[399746467,1766653488295,288.80049954,0.00032876,120]
[399746468,1766653488436,-250.0,0.00011142,2]
[399746469,1766653488459,-76.86175299,0.00011142,2]
[399746470,1766653490028,-164.13824701,0.00011142,2]
[399746471,1766653490063,-123.07644448,0.00011142,2]
[399746472,1766653491906,-463.85887678,0.00011142,2]
[399746473,1766653492658,418.86460414,0.00032876,120]
[399746474,1766653493619,417.81757651,0.00032876,120]
[399746475,1766653494223,366.45098164,0.00032876,120]
[399746476,1766653494606,-817.20716475,0.00011142,2]
[399746477,1766653497728,-160.40959235,0.00011142,2]
[399746478,1766653497755,-17.68644383,0.00011142,2]
[399746479,1766653499683,500.0,0.00032876,120]
[399746480,1766653499920,500.0,0.00032876,120]
[399746481,1766653499955,-212.63005743,0.00011142,2]
[399746482,1766653499980,-79.79991211,0.00011142,2]
[399746483,1766653500300,500.0,0.00032876,120]
[399746484,1766653500409,508.86999622,0.00032876,120]
[399746486,1766653502448,311.24734303,0.00032876,120]
[399746487,1766653504304,382.49557758,0.00032876,120]
[399746488,1766653508028,523.95933082,0.00032876,120]
[399746489,1766653508950,419.90922617,0.00032876,120]
[399746490,1766653509801,220.85506071,0.00032876,120]
[399746491,1766653511496,231.99309655,0.00032876,120]
[399746492,1766653513076,469.47119028,0.00032876,120]
[399746493,1766653515334,500.0,0.00032876,120]
[399746494,1766653515554,500.0,0.00032876,120]
[399746495,1766653515786,500.0,0.00032876,120]
[399746496,1766653516003,401.03471157,0.00032876,120]
[399746497,1766653516088,500.0,0.00032876,120]
[399746498,1766653516248,500.0,0.00032876,120]
[399746505,1766653523111,477.40569591,0.00032876,120]
[399746506,1766653527849,284.16503708,0.00032876,120]
[399746507,1766653529675,500.0,0.00032876,120]
[399746508,1766653529919,500.0,0.00032876,120]
[399746509,1766653530161,500.0,0.00032876,120]
[399746510,1766653530400,500.0,0.00032876,120]
[399746511,1766653530638,500.0,0.00032876,120]
[399746512,1766653531005,500.0,0.00032876,120]
[399746513,1766653531115,500.0,0.00032876,120]
[399746514,1766653531353,500.0,0.00032876,120]
[399746515,1766653531624,500.0,0.00032876,120]
[399746516,1766653531864,559.47231222,0.00032876,120]
[399746517,1766653531946,419.14091409,0.00032876,120]
[399746518,1766653533604,329.61396523,0.00032876,120]
[399746519,1766653535809,233.7717832,0.00032876,120]
[399746520,1766653536014,259.27177298,0.00032876,120]
[399746521,1766653537485,302.39730641,0.00032876,120]
[399746522,1766653538842,406.92050666,0.00032876,120]
[399746523,1766653539302,357.50221694,0.00032876,120]
[399746524,1766653540551,322.38178901,0.00032876,120]
[399746525,1766653541243,426.82758063,0.00032876,120]
[399746526,1766653541346,271.53277413,0.00032876,120]
[399746527,1766653543697,287.34850448,0.00032876,120]
[399746528,1766653543993,321.34979981,0.00032876,120]
[399746529,1766653546165,318.0121526,0.00032876,120]
[399746530,1766653547050,153.48912875,0.00032876,120]
[399746531,1766653548140,281.91771842,0.00032876,120]
[399746532,1766653549170,421.88103255,0.00032876,120]
[399746533,1766653549775,277.84695682,0.00032876,120]
[399746534,1766653550031,334.02565445,0.00032876,120]
[399746535,1766653550636,265.04968769,0.00032876,120]
[399746536,1766653550995,386.04395365,0.00032876,120]
[399746537,1766653553775,235.12310691,0.00032876,120]
[399746538,1766653557261,252.02958027,0.00032876,120]
[399746539,1766653558107,366.91300542,0.00032876,120]
[399746540,1766653560781,505.37220207,0.00032876,120]
[399746541,1766653562002,326.91523835,0.00032876,120]
[399746542,1766653562084,220.44273781,0.00032876,120]
[399746543,1766653562719,483.50556649,0.00032876,120]
[399746544,1766653565759,302.13232623,0.00032876,120]
[399746545,1766653566990,380.35389963,0.00032876,120]
[399746546,1766653567961,401.27648235,0.00032876,120]
[399746547,1766653569224,316.69052492,0.00032876,120]
[399746548,1766653570010,199.65448609,0.00032876,120]
[399746549,1766653571576,243.34375022,0.00032876,120]
[399746550,1766653572914,180.87640731,0.00032876,120]
[399746551,1766653572996,420.63245382,0.00032876,120]
[399746552,1766653577143,427.18375443,0.00032876,120]
[399746553,1766653577526,279.86490408,0.00032876,120]
[399746554,1766653577702,2322.26,0.00032876,120]
[399746555,1766653578042,2322.26,0.00032876,120]
[399746556,1766653578283,2322.26,0.00032876,120]
[399746557,1766653578507,2322.26,0.00032876,120]
[399746558,1766653578979,2322.26,0.00032876,120]
[399746560,1766653579215,2322.26,0.00032876,120]
[399746562,1766653579438,322.04531043,0.00032876,120]
[399746563,1766653579533,2322.26,0.00032876,120]
[399746564,1766653579683,2322.26,0.00032876,120]
[399746566,1766653579923,2322.26,0.00032876,120]
[399746568,1766653580162,2322.26,0.00032876,120]
[399746569,1766653580397,2322.26,0.00032876,120]
[399746570,1766653580598,184.9592705,0.00032876,120]
[399746572,1766653580710,2322.26,0.00032876,120]
[399746574,1766653580823,319.93301111,0.00032876,120]
[399746575,1766653580946,2322.26,0.00032876,120]
[399746576,1766653581106,2322.26,0.00032876,120]
[399746577,1766653581283,2322.26,0.00032876,120]
[399746578,1766653581528,2322.26,0.00032876,120]
[399746579,1766653581765,2322.26,0.00032876,120]
[399746580,1766653581836,1092.1476,0.00011142,2]
[399746581,1766653581978,2322.26,0.00032876,120]
[399746582,1766653582226,2322.26,0.00032876,120]
[399746583,1766653582532,336.86419101,0.00032876,120]
[399746584,1766653582621,2322.26,0.00032876,120]
[399746585,1766653582741,2322.26,0.00032876,120]
[399746586,1766653582939,2322.26,0.00032876,120]
[399746587,1766653583166,2322.26,0.00032876,120]
[399746588,1766653583418,2322.30015576,0.00032876,120]
[399746589,1766653589022,279.92341786,0.00032876,120]
[399746590,1766653590517,365.0718182,0.00032876,120]
[399746591,1766653592948,500.0,0.00032876,120]
[399746592,1766653593044,500.0,0.00032876,120]
[399746593,1766653593442,367.18835014,0.00032876,120]
[399746594,1766653595433,200.19512346,0.00032876,120]
[399746595,1766653596712,455.21123425,0.00032876,120]
[399746596,1766653597036,318.82531253,0.00032876,120]
[399746597,1766653598176,431.31453511,0.00032876,120]
[399746598,1766653598507,500.0,0.00032876,120]
[399746599,1766653598741,500.0,0.00032876,120]
[399746600,1766653598841,291.5196961,0.00032876,120]
[399746601,1766653598970,500.0,0.00032876,120]
[399746602,1766653599196,500.0,0.00032876,120]
[399746603,1766653599427,500.0,0.00032876,120]
[399746604,1766653599659,500.0,0.00032876,120]
[399746605,1766653600038,500.0,0.00032876,120]
[399746606,1766653600265,500.0,0.00032876,120]
[399746607,1766653600496,500.0,0.00032876,120]
[399746608,1766653600725,271.86472124,0.00032876,120]
[399746609,1766653604511,500.0,0.00032876,120]
[399746610,1766653604898,500.0,0.00032876,120]
[399746611,1766653605125,500.0,0.00032876,120]
[399746612,1766653605458,500.0,0.00032876,120]
[399746613,1766653605704,500.0,0.00032876,120]
[399746614,1766653605942,500.0,0.00032876,120]
[399746615,1766653606177,500.0,0.00032876,120]
[399746616,1766653606521,500.0,0.00032876,120]
[399746617,1766653606776,500.0,0.00032876,120]
[399746618,1766653606858,253.43847901,0.00032876,120]
[399746619,1766653606999,500.0,0.00032876,120]
[399746620,1766653607390,500.0,0.00032876,120]
[399746621,1766653607601,500.0,0.00032876,120]
[399746622,1766653607731,462.91178022,0.00032876,120]
[399746623,1766653607820,500.0,0.00032876,120]
[399746624,1766653608260,500.0,0.00032876,120]
[399746625,1766653608495,363.39306336,0.00032876,120]
[399746626,1766653610076,500.0,0.00032876,120]
[399746627,1766653610883,310.14022769,0.00032876,120]
[399746628,1766653610985,431.39312595,0.00032876,120]
[399746630,1766653613768,400.84127846,0.00032876,120]
[399746631,1766653618635,296.27051099,0.00032876,120]
[399746632,1766653618989,437.96864007,0.00032876,120]
[399746633,1766653619896,484.53824099,0.00032876,120]
[399746634,1766653622620,295.91076559,0.00032876,120]
[399746635,1766653622751,209.55273698,0.00032876,120]
[399746636,1766653624562,254.53620946,0.00032876,120]
[399746637,1766653626305,270.19606802,0.00032876,120]
[399746638,1766653628125,385.37333371,0.00032876,120]
[399746639,1766653631692,309.93875193,0.00032876,120]
[399746640,1766653632790,182.50828416,0.00032876,120]
[399746641,1766653633446,168.35437022,0.00032876,120]
[399746642,1766653635280,253.74823441,0.00032876,120]
[399746643,1766653636315,164.85729192,0.00032876,120]
[399746644,1766653637105,501.36679052,0.00032876,120]
[399746645,1766653638047,166.19708777,0.00032876,120]
[399746650,1766653639566,421.2501888,0.00032876,120]
[399746653,1766653640939,433.60386774,0.00032876,120]
[399746654,1766653642688,464.58932896,0.00032876,120]
[399746655,1766653644442,218.52696283,0.00032876,120]
[399746656,1766653644552,427.97335884,0.00032876,120]
[399746657,1766653646709,833.72,0.00032876,120]
[399746658,1766653646951,833.72,0.00032876,120]
[399746659,1766653647207,833.72,0.00032876,120]
[399746660,1766653647472,833.72,0.00032876,120]
[399746661,1766653647709,833.72,0.00032876,120]
[399746662,1766653647945,833.72,0.00032876,120]
[399746663,1766653648187,833.72,0.00032876,120]
[399746664,1766653648266,457.05463309,0.00032876,120]
[399746665,1766653648418,833.72,0.00032876,120]
[399746666,1766653648838,833.72,0.00032876,120]
[399746667,1766653649074,833.72,0.00032876,120]
[399746668,1766653649313,833.72,0.00032876,120]
[399746669,1766653649915,833.72,0.00032876,120]
[399746670,1766653650162,833.72,0.00032876,120]
[399746671,1766653650401,833.72,0.00032876,120]
[399746672,1766653650672,833.72,0.00032876,120]
[399746673,1766653650925,833.72,0.00032876,120]
[399746674,1766653651198,833.72,0.00032876,120]
[399746675,1766653651429,833.72,0.00032876,120]
[399746676,1766653652003,833.72,0.00032876,120]
[399746677,1766653652235,833.72,0.00032876,120]
[399746678,1766653652535,833.72,0.00032876,120]
[399746679,1766653652773,833.72,0.00032876,120]
[399746680,1766653653000,833.72,0.00032876,120]
[399746681,1766653653237,833.91858242,0.00032876,120]
[399746682,1766653656202,302.92484198,0.00032876,120]
[399746683,1766653656729,436.95927401,0.00032876,120]
[399746684,1766653656800,384.00051994,0.00032876,120]
[399746685,1766653656873,206.85274473,0.00032876,120]
[399746686,1766653657874,197.72579053,0.00032876,120]
[399746687,1766653658330,473.1839964,0.00032876,120]
[399746688,1766653658650,501.44282466,0.00032876,120]
[399746689,1766653659960,374.43015485,0.00032876,120]
[399746690,1766653660115,443.39937661,0.00032876,120]
[399746691,1766653661653,176.09,0.00032876,120]
[399746692,1766653663383,238.06808115,0.00032876,120]
[399746693,1766653663532,419.92342195,0.00032876,120]
[399746694,1766653665262,364.05529783,0.00032876,120]
[399746695,1766653666829,302.07642611,0.00032876,120]
[399746696,1766653666998,425.88027434,0.00032876,120]
[399746697,1766653667074,381.84502284,0.00032876,120]
[399746698,1766653668820,264.52693443,0.00032876,120]
[399746699,1766653668892,273.412008,0.00032876,120]
[399746700,1766653670586,415.18521931,0.00032876,120]
[399746701,1766653673835,485.54134312,0.00032876,120]
[399746702,1766653677496,168.51732247,0.00032876,120]
[399746703,1766653677744,500.0,0.00032876,120]
[399746704,1766653677971,500.0,0.00032876,120]
[399746705,1766653678219,500.0,0.00032876,120]
[399746706,1766653678461,500.0,0.00032876,120]
[399746707,1766653678696,500.0,0.00032876,120]
[399746708,1766653678943,500.0,0.00032876,120]
[399746709,1766653679179,500.0,0.00032876,120]
[399746710,1766653679421,500.0,0.00032876,120]
[399746711,1766653680025,500.0,0.00032876,120]
[399746712,1766653680103,197.76401296,0.00032876,120]
[399746713,1766653680279,500.0,0.00032876,120]
[399746714,1766653680511,500.0,0.00032876,120]
[399746715,1766653680746,406.82640432,0.00032876,120]
[399746716,1766653681287,340.34115967,0.00032876,120]
[399746717,1766653682757,385.56211511,0.00032876,120]
[399746719,1766653684124,310.81671491,0.00032876,120]
[399746720,1766653686057,304.58013179,0.00032876,120]
[399746721,1766653686321,445.34572839,0.00032876,120]
[399746722,1766653687929,221.39022212,0.00032876,120]
[399746723,1766653689372,454.76891651,0.00032876,120]
[399746724,1766653693520,346.34447788,0.00032876,120]
[399746725,1766653694016,247.84579525,0.00032876,120]
[399746726,1766653695224,286.18773075,0.00032876,120]
[399746727,1766653695395,429.83251411,0.00032876,120]
[399746728,1766653695930,451.53893746,0.00032876,120]
[399746729,1766653697077,389.62213042,0.00032876,120]
[399746733,1766653698417,237.14432263,0.00032876,120]
[399746735,1766653698755,474.29447147,0.00032876,120]
[399746738,1766653703505,355.54856978,0.00032876,120]
[399746739,1766653704834,215.03704963,0.00032876,120]
[399746740,1766653708616,423.56574878,0.00032876,120]
[399746741,1766653710456,188.67484695,0.00032876,120]
[399746742,1766653710702,367.09418304,0.00032876,120]
[399746743,1766653712954,500.0,0.00032876,120]
[399746744,1766653713183,500.0,0.00032876,120]
[399746745,1766653713414,500.0,0.00032876,120]
[399746746,1766653713643,500.0,0.00032876,120]
[399746747,1766653713761,213.8776069,0.00032876,120]
[399746748,1766653713876,500.0,0.00032876,120]
[399746749,1766653713950,2642.06,7.269e-05,2]
[399746750,1766653714117,500.0,0.00032876,120]
[399746751,1766653714159,1386.4762,7.651e-05,2]
[399746752,1766653714184,1255.5838,7.651e-05,2]
[399746753,1766653714360,500.0,0.00032876,120]
[399746754,1766653714406,2642.06,8.034e-05,2]
[399746755,1766653714591,500.0,0.00032876,120]
[399746756,1766653714634,2642.06,8.416e-05,2]
[399746757,1766653714751,2642.06,8.799e-05,2]
[399746758,1766653714833,500.0,0.00032876,120]
[399746759,1766653714941,818.2462,9.182e-05,2]
[399746760,1766653714966,1823.8138,9.182e-05,2]
[399746761,1766653715056,500.0,0.00032876,120]
[399746762,1766653715132,2642.06,9.564e-05,2]
[399746763,1766653715293,528.14702965,0.00032876,120]
[399746764,1766653715338,2642.06,9.947e-05,2]
[399746766,1766653715671,270.34918973,0.00032876,120]
[399746767,1766653715718,2642.06,0.00010329,2]
[399746768,1766653715982,250.0162,0.00010712,2]
[399746769,1766653716007,2392.0438,0.00010712,2]
[399746770,1766653716230,2642.06,0.00011095,2]
[399746771,1766653717404,573.20471948,0.00032876,120]
[399746772,1766653722041,431.42458998,0.00032876,120]
[399746773,1766653726387,262.32672217,0.00032876,120]
[399746775,1766653728946,354.38959193,0.00032876,120]
[399746776,1766653732025,1209.56,0.00032876,120]
[399746777,1766653732265,1209.56,0.00032876,120]
[399746778,1766653732510,1209.56,0.00032876,120]
[399746779,1766653732749,1209.56,0.00032876,120]
[399746780,1766653733004,1209.56,0.00032876,120]
[399746781,1766653733279,1209.56,0.00032876,120]
[399746782,1766653733526,1209.56,0.00032876,120]
[399746783,1766653733768,1209.56,0.00032876,120]
[399746784,1766653734040,1209.56,0.00032876,120]
[399746785,1766653734206,236.84648804,0.00032876,120]
[399746786,1766653734288,1209.56,0.00032876,120]
[399746787,1766653734524,1209.56,0.00032876,120]
[399746788,1766653735114,1209.56,0.00032876,120]
[399746789,1766653735377,1209.56,0.00032876,120]
[399746790,1766653735662,1209.56,0.00032876,120]
[399746791,1766653735888,1209.56,0.00032876,120]
[399746792,1766653736117,1209.56,0.00032876,120]
[399746793,1766653736353,1209.56,0.00032876,120]
[399746794,1766653736590,1209.56,0.00032876,120]
[399746795,1766653736816,1209.56,0.00032876,120]
[399746796,1766653737457,1209.56,0.00032876,120]
[399746797,1766653737690,1209.56,0.00032876,120]
[399746798,1766653737952,1209.56,0.00032876,120]
[399746799,1766653738470,1209.56,0.00032876,120]
[399746800,1766653738539,1209.56583243,0.00032876,120]
[399746801,1766653743944,406.00117693,0.00032876,120]
[399746802,1766653750435,396.5628649,0.00032876,120]
[399746803,1766653751003,259.80193392,0.00032876,120]
[399746805,1766653752380,556.12538538,0.00032876,120]
[399746806,1766653754247,500.0,0.00032876,120]
[399746807,1766653754475,237.50233928,0.00032876,120]
[399746808,1766653756431,437.25762524,0.00032876,120]
[399746809,1766653756610,251.00697083,0.00032876,120]
[399746810,1766653757514,500.0,0.00032876,120]
[399746811,1766653757752,500.0,0.00032876,120]
[399746812,1766653758015,520.06910549,0.00032876,120]
[399746813,1766653758396,364.73853848,0.00032876,120]
[399746814,1766653759442,161.84236336,0.00032876,120]
[399746821,1766653761634,255.75876277,0.00032876,120]
[399746822,1766653763698,385.26503412,0.00032876,120]
[399746823,1766653765188,498.88744464,0.00032876,120]
[399746824,1766653766953,303.65789947,0.00032876,120]
[399746825,1766653767988,500.0,0.00032876,120]
[399746826,1766653768210,500.0,0.00032876,120]
[399746827,1766653768437,500.0,0.00032876,120]
[399746828,1766653768659,500.0,0.00032876,120]
[399746829,1766653768770,440.27690652,0.00032876,120]
[399746830,1766653768936,500.0,0.00032876,120]
[399746831,1766653769428,523.14071602,0.00032876,120]
[399746832,1766653770815,500.0,0.00032876,120]
[399746833,1766653771083,246.45405994,0.00032876,120]
[399746834,1766653773223,560.52034102,0.00032876,120]
[399746835,1766653776578,380.3146472,0.00032876,120]
[399746836,1766653777745,220.91923191,0.00032876,120]
[399746837,1766653779913,422.57817564,0.00032876,120]
[399746838,1766653780995,413.84136644,0.00032876,120]
[399746839,1766653781620,409.565039,0.00032876,120]
[399746840,1766653783311,4965.9062,0.00011142,2]
[399746841,1766653783339,10000.01,0.00011142,2]
[399746842,1766653783370,10000.01,0.00011142,2]
[399746843,1766653783397,10000.01,0.00011142,2]
[399746844,1766653783424,10000.01,0.00011142,2]
[399746845,1766653783450,10000.01,0.00011142,2]
[399746846,1766653783477,10000.01,0.00011142,2]
[399746847,1766653783502,10000.01,0.00011142,2]
[399746848,1766653783527,10000.01,0.00011142,2]
[399746849,1766653783552,10000.01,0.00011142,2]
[399746850,1766653785657,202.87475067,0.00032876,120]
[399746851,1766653789110,415.66376826,0.00032876,120]
[399746852,1766653789278,500.0,0.00032876,120]
[399746853,1766653789514,500.0,0.00032876,120]
[399746854,1766653789981,500.0,0.00032876,120]
[399746855,1766653790066,500.0,0.00032876,120]
[399746856,1766653790231,500.0,0.00032876,120]
[399746857,1766653790627,348.81770919,0.00032876,120]
[399746858,1766653790699,500.0,0.00032876,120]
[399746859,1766653790882,300.52688609,0.00032876,120]
[399746860,1766653798250,171.79732796,0.00032876,120]
[399746861,1766653798529,292.26379259,0.00032876,120]
[399746862,1766653799869,181.02657438,0.00032876,120]
[399746863,1766653800892,-229.62768633,0.00011042,2]
[399746864,1766653801344,-300.0,0.00011141,2]
[399746865,1766653801376,-300.0,0.00011141,2]
[399746866,1766653801768,-1200.0,0.00011141,2]
[399746867,1766653802500,-9275.49,0.00011142,2]
[399746868,1766653803805,-241.0,0.00011141,2]
[399746869,1766653803847,-9518.01,0.00011142,2]
[399746870,1766653803930,-10000.01,0.00011142,2]
[399746871,1766653804065,-10000.01,0.00011142,2]
[399746872,1766653804204,-10000.01,0.00011142,2]
[399746873,1766653804293,-10000.01,0.00011142,2]
[399746874,1766653804396,-10000.01,0.00011142,2]
[399746875,1766653804513,-10000.01,0.00011142,2]
[399746876,1766653804621,-10000.01,0.00011142,2]
[399746877,1766653804723,-10000.01,0.00011142,2]
[399746878,1766653805190,481.44304686,0.00032876,120]
[399746879,1766653809687,200.81705057,0.00032876,120]
[399746880,1766653809769,168.24251026,0.00032876,120]
[399746881,1766653810037,503.33539467,0.00032876,120]
[399746882,1766653810708,500.0,0.00032876,120]
[399746883,1766653810845,500.0,0.00032876,120]
[399746884,1766653810930,500.0,0.00032876,120]
[399746885,1766653811070,500.0,0.00032876,120]
[399746886,1766653811162,500.0,0.00032876,120]
[399746887,1766653811301,500.0,0.00032876,120]
[399746888,1766653811394,500.0,0.00032876,120]
[399746889,1766653811539,509.67490394,0.00032876,120]
[399746890,1766653811632,500.0,0.00032876,120]
[399746891,1766653811870,500.0,0.00032876,120]
[399746892,1766653812100,500.0,0.00032876,120]